fUST/lending_fUST_20250609
["ID","MTS","AMOUNT","RATE_DAILY","PERIOD"]
[365066909,1749437442956,-156.22655649,0.000199,2]
[365066910,1749437442967,-449.90769174,0.00019916,2]
[365066911,1749437442979,-440.0,0.0002,2]
[365066912,1749437442987,-497.45,0.0002,2]
[365066913,1749437442997,-440.0,0.0002,2]
[365066914,1749437443006,-440.0,0.0002,2]
[365066915,1749437443017,-440.0,0.0002,2]
[365066916,1749437443028,-440.0,0.0002,2]
[365066917,1749437443038,-440.0,0.0002,2]
[365066918,1749437443047,-440.0,0.0002,2]
[365066919,1749437443056,-440.0,0.0002,2]
[365066920,1749437443067,-440.0,0.0002,2]
[365066921,1749437443077,-440.0,0.0002,2]
[365066922,1749437443086,-440.0,0.0002,2]
[365066923,1749437443095,-440.0,0.0002,2]
[365066924,1749437443105,-440.0,0.0002,2]
[365066925,1749437443114,-1032.98,0.0002,2]
[365066926,1749437443123,-440.0,0.0002,2]
[365066927,1749437443133,-564.09,0.0002,2]
[365066928,1749437443142,-440.0,0.0002,2]
[365066929,1749437443153,-631.6,0.0002,2]
[365066930,1749437443163,-440.0,0.0002,2]
[365066931,1749437443172,-308.24621237,0.0002,2]
[365066932,1749437443182,-527.37,0.0002,2]
[365066933,1749437443191,-440.0,0.0002,2]
[365066934,1749437443201,-440.0,0.0002,2]
[365066935,1749437443210,-499.2,0.0002,2]
[365066936,1749437443220,-873.94,0.0002,2]
[365066937,1749437443230,-717.35,0.0002,2]
[365066938,1749437443240,-856.57,0.0002,2]
[365066939,1749437443249,-440.0,0.0002,2]
[365066940,1749437443259,-440.0,0.0002,2]
[365066941,1749437443268,-440.0,0.0002,2]
[365066942,1749437443277,-440.0,0.0002,2]
[365066943,1749437443288,-1028.87,0.0002,2]
[365066944,1749437443298,-440.0,0.0002,2]
[365066945,1749437443307,-440.0,0.0002,2]
[365066946,1749437443316,-163.146,0.00020136,2]
[365066947,1749437443326,-440.0,0.00020273,2]
[365066948,1749437443335,-497.45,0.00020273,2]
[365066949,1749437443344,-440.0,0.00020273,2]
[365066950,1749437443354,-233.10500168,0.00020273,2]
[365066951,1749437443363,-440.0,0.00020273,2]
[365066952,1749437443372,-440.0,0.00020273,2]
[365066953,1749437443382,-440.0,0.00020273,2]
[365066954,1749437443391,-440.0,0.00020273,2]
[365066955,1749437443401,-440.0,0.00020273,2]
[365066956,1749437443410,-440.0,0.00020273,2]
[365066957,1749437443420,-440.0,0.00020273,2]
[365066958,1749437443429,-440.0,0.00020273,2]
[365066959,1749437443439,-1032.98,0.00020273,2]
[365066960,1749437443448,-440.0,0.00020273,2]
[365066962,1749437443458,-564.09,0.00020273,2]
[365066963,1749437443468,-440.0,0.00020273,2]
[365066964,1749437443477,-631.6,0.00020273,2]
[365066965,1749437443487,-527.37,0.00020273,2]
[365066966,1749437443497,-206.23702537,0.00020273,2]
[365066967,1749437443507,-440.0,0.00020273,2]
[365066968,1749437443516,-873.94,0.00020273,2]
[365066969,1749437443525,-717.35,0.00020273,2]
[365066970,1749437443537,-856.57,0.00020273,2]
[365066971,1749437443546,-440.0,0.00020273,2]
[365066972,1749437443556,-1028.87,0.00020273,2]
[365066973,1749437443565,-299.32149065,0.00020273,2]
[365066974,1749437443576,-440.0,0.00020273,2]
[365066975,1749437443585,-842.5625,0.00020516,2]
[365066976,1749437443594,-160.0,0.00020517,2]
[365066977,1749437443604,-160.0,0.00020517,2]
[365066978,1749437443613,-213.08899333,0.00020517,2]
[365066979,1749437443623,-424.05420114,0.00020517,2]
[365066980,1749437443632,-834.7738823,0.00020517,2]
[365066981,1749437443642,-160.0,0.00020517,2]
[365066982,1749437443652,-229.64266968,0.00020517,2]
[365066983,1749437443661,-497.45,0.00020547,2]
[365066984,1749437443670,-440.0,0.00020547,2]
[365066985,1749437443680,-440.0,0.00020547,2]
[365066986,1749437443690,-440.0,0.00020547,2]
[365066987,1749437443699,-440.0,0.00020547,2]
[365066988,1749437443709,-440.0,0.00020547,2]
[365066989,1749437443718,-440.0,0.00020547,2]
[365066990,1749437443730,-440.0,0.00020547,2]
[365066991,1749437443740,-440.0,0.00020547,2]
[365066992,1749437443749,-440.0,0.00020547,2]
[365066993,1749437443760,-1032.98,0.00020547,2]
[365066994,1749437443769,-440.0,0.00020547,2]
[365066995,1749437443780,-564.09,0.00020547,2]
[365066996,1749437443789,-440.0,0.00020547,2]
[365066997,1749437443799,-631.6,0.00020547,2]
[365066998,1749437443811,-527.37,0.00020547,2]
[365066999,1749437443821,-440.0,0.00020547,2]
[365067000,1749437443831,-873.94,0.00020547,2]
[365067001,1749437443842,-717.35,0.00020547,2]
[365067002,1749437443852,-856.57,0.00020547,2]
[365067003,1749437443861,-440.0,0.00020547,2]
[365067004,1749437443870,-1028.87,0.00020547,2]
[365067005,1749437443879,-440.0,0.00020547,2]
[365067006,1749437443888,-426.86,0.000206,2]
[365067007,1749437443897,-900.0,0.00020765,2]
[365067008,1749437443906,-709.13,0.000208,2]
[365067009,1749437443916,-497.45,0.00020821,2]
[365067010,1749437443925,-440.0,0.00020821,2]
[365067011,1749437443934,-440.0,0.00020821,2]
[365067012,1749437443944,-440.0,0.00020821,2]
[365067013,1749437443953,-440.0,0.00020821,2]
[365067014,1749437443963,-440.0,0.00020821,2]
[365067015,1749437443973,-440.0,0.00020821,2]
[365067016,1749437443983,-440.0,0.00020821,2]
[365067017,1749437443992,-516.32,0.00020821,2]
[365067018,1749437444002,-440.0,0.00020821,2]
[365067019,1749437444011,-1032.98,0.00020821,2]
[365067020,1749437444021,-440.0,0.00020821,2]
[365067021,1749437444031,-564.09,0.00020821,2]
[365067022,1749437444040,-440.0,0.00020821,2]
[365067023,1749437444050,-631.6,0.00020821,2]
[365067024,1749437444059,-527.37,0.00020821,2]
[365067025,1749437444068,-440.0,0.00020821,2]
[365067026,1749437444077,-873.94,0.00020821,2]
[365067027,1749437444088,-717.35,0.00020821,2]
[365067028,1749437444097,-856.57,0.00020821,2]
[365067029,1749437444108,-440.0,0.00020821,2]
[365067030,1749437444118,-1028.87,0.00020821,2]
[365067031,1749437444128,-440.0,0.00020821,2]
[365067032,1749437444138,-420.0,0.00020898,2]
[365067033,1749437444148,-473.99233257,0.000209,4]
[365067034,1749437444158,-473.99233255,0.00021038,4]
[365067035,1749437444168,-497.45,0.00021095,2]
[365067036,1749437444178,-440.0,0.00021095,2]
[365067037,1749437444187,-440.0,0.00021095,2]
[365067038,1749437444197,-440.0,0.00021095,2]
[365067039,1749437444207,-440.0,0.00021095,2]
[365067040,1749437444216,-440.0,0.00021095,2]
[365067041,1749437444225,-440.0,0.00021095,2]
[365067042,1749437444235,-440.0,0.00021095,2]
[365067043,1749437444244,-440.0,0.00021095,2]
[365067044,1749437444254,-1032.98,0.00021095,2]
[365067045,1749437444263,-440.0,0.00021095,2]
[365067046,1749437444271,-564.09,0.00021095,2]
[365067047,1749437444281,-440.0,0.00021095,2]
[365067048,1749437444290,-631.6,0.00021095,2]
[365067049,1749437444300,-527.37,0.00021095,2]
[365067050,1749437444309,-466.6907597,0.00021095,2]
[365067051,1749437444319,-873.94,0.00021095,2]
[365067052,1749437444328,-717.35,0.00021095,2]
[365067053,1749437444337,-856.57,0.00021095,2]
[365067054,1749437444346,-440.0,0.00021095,2]
[365067055,1749437444356,-1028.87,0.00021095,2]
[365067056,1749437444365,-440.0,0.00021095,2]
[365067057,1749437444374,-473.99233255,0.00021176,4]
[365067058,1749437444384,-473.99233255,0.00021314,5]
[365067059,1749437444393,-497.45,0.00021369,2]
[365067060,1749437444403,-440.0,0.00021369,2]
[365067061,1749437444413,-440.0,0.00021369,2]
[365067062,1749437444422,-440.0,0.00021369,2]
[365067063,1749437444433,-440.0,0.00021369,2]
[365067064,1749437444442,-480.4057243,0.00021369,2]
[365067065,1749437444452,-277.61028968,0.00021369,2]
[365067066,1749437444461,-440.0,0.00021369,2]
[365067067,1749437444471,-440.0,0.00021369,2]
[365067068,1749437444482,-1032.98,0.00021369,2]
[365067069,1749437444491,-440.0,0.00021369,2]
[365067070,1749437444501,-564.09,0.00021369,2]
[365067071,1749437444510,-440.0,0.00021369,2]
[365067072,1749437444521,-631.6,0.00021369,2]
[365067073,1749437444530,-527.37,0.00021369,2]
[365067074,1749437444540,-873.94,0.00021369,2]
[365067075,1749437444549,-717.35,0.00021369,2]
[365067076,1749437444559,-856.57,0.00021369,2]
[365067077,1749437444569,-440.0,0.00021369,2]
[365067078,1749437444584,-1028.87,0.00021369,2]
[365067079,1749437444594,-229.16378048,0.00021369,2]
[365067080,1749437444605,-155808.08607475,0.00021395,2]
[365067081,1749437444614,-473.99233255,0.00021452,5]
[365067082,1749437444624,-473.99233255,0.0002159,5]
[365067083,1749437444633,-97605.06913719,0.00021628,2]
[365067084,1749437444643,-497.45,0.00021643,2]
[365067085,1749437444652,-440.0,0.00021643,2]
[365067086,1749437444662,-440.0,0.00021643,2]
[365067087,1749437444671,-440.0,0.00021643,2]
[365067088,1749437444681,-440.0,0.00021643,2]
[365067089,1749437444691,-440.0,0.00021643,2]
[365067090,1749437444700,-440.0,0.00021643,2]
[365067091,1749437444709,-1032.98,0.00021643,2]
[365067092,1749437444719,-440.0,0.00021643,2]
[365067093,1749437444731,-564.09,0.00021643,2]
[365067094,1749437444740,-440.0,0.00021643,2]
[365067095,1749437444750,-631.6,0.00021643,2]
[365067096,1749437444760,-527.37,0.00021643,2]
[365067097,1749437444771,-873.94,0.00021643,2]
[365067098,1749437444781,-717.35,0.00021643,2]
[365067099,1749437444790,-856.57,0.00021643,2]
[365067100,1749437444800,-440.0,0.00021643,2]
[365067101,1749437444932,-1028.87,0.00021643,2]
[365067102,1749437444942,-473.99233255,0.00021728,5]
[365067103,1749437444953,-900.0,0.00021861,2]
[365067104,1749437444962,-473.99233255,0.00021866,6]
[365067105,1749437444972,-497.45,0.00021917,2]
[365067106,1749437444982,-440.0,0.00021917,2]
[365067107,1749437444992,-440.0,0.00021917,2]
[365067108,1749437445002,-440.0,0.00021917,2]
[365067109,1749437445011,-440.0,0.00021917,2]
[365067110,1749437445021,-440.0,0.00021917,2]
[365067111,1749437445031,-440.0,0.00021917,2]
[365067112,1749437445040,-1032.98,0.00021917,2]
[365067113,1749437445049,-440.0,0.00021917,2]
[365067114,1749437445058,-564.09,0.00021917,2]
[365067115,1749437445068,-440.0,0.00021917,2]
[365067116,1749437445077,-631.6,0.00021917,2]
[365067117,1749437445087,-500.0,0.00021917,2]
[365067118,1749437445097,-527.37,0.00021917,2]
[365067119,1749437445106,-873.94,0.00021917,2]
[365067120,1749437445115,-717.35,0.00021917,2]
[365067121,1749437445125,-856.57,0.00021917,2]
[365067122,1749437445136,-255.43952314,0.00021917,2]
[365067123,1749437445146,-1028.87,0.00021917,2]
[365067124,1749437445155,-500.0,0.00021933,2]
[365067125,1749437445167,-500.0,0.00021964,2]
[365067126,1749437445177,-473.99233255,0.00022003,6]
[365067127,1749437445186,-426.86,0.000221,7]
[365067128,1749437445196,-473.99233255,0.00022141,6]
[365067129,1749437445207,-156.22655647,0.00022178,2]
[365067130,1749437445216,-497.45,0.00022191,4]
[365067131,1749437445226,-440.0,0.00022191,4]
[365067132,1749437445236,-440.0,0.00022191,4]
[365067133,1749437445246,-440.0,0.00022191,4]
[365067134,1749437445255,-440.0,0.00022191,4]
[365067135,1749437445265,-440.0,0.00022191,4]
[365067136,1749437445275,-1032.98,0.00022191,4]
[365067137,1749437445285,-440.0,0.00022191,4]
[365067138,1749437445295,-564.09,0.00022191,4]
[365067139,1749437445305,-474.15271416,0.00022191,4]
[365067140,1749437445315,-631.6,0.00022191,4]
[365067141,1749437445325,-527.37,0.00022191,4]
[365067142,1749437445335,-873.94,0.00022191,4]
[365067143,1749437445345,-717.35,0.00022191,4]
[365067144,1749437445355,-856.57,0.00022191,4]
[365067145,1749437445365,-1028.87,0.00022191,4]
[365067146,1749437445375,-709.13,0.000222,7]
[365067147,1749437445384,-473.99233255,0.00022279,6]
[365067148,1749437445395,-473.99233255,0.00022417,7]
[365067149,1749437445405,-500.0,0.00022431,2]
[365067150,1749437445415,-500.0,0.00022431,2]
[365067151,1749437445425,-497.45,0.00022465,4]
[365067152,1749437445434,-440.0,0.00022465,4]
[365067153,1749437445444,-400.0,0.00022465,2]
[365067154,1749437445455,-171.04344344,0.00022465,2]
[365067155,1749437445465,-440.0,0.00022465,4]
[365067156,1749437445474,-440.0,0.00022465,4]
[365067157,1749437445484,-440.0,0.00022465,4]
[365067158,1749437445494,-440.0,0.00022465,4]
[365067159,1749437445504,-1032.98,0.00022465,4]
[365067160,1749437445513,-440.0,0.00022465,4]
[365067161,1749437445522,-564.09,0.00022465,4]
[365067162,1749437445532,-631.6,0.00022465,4]
[365067163,1749437445542,-500.0,0.00022465,2]
[365067164,1749437445552,-527.37,0.00022465,4]
[365067165,1749437445561,-873.94,0.00022465,4]
[365067166,1749437445571,-717.35,0.00022465,4]
[365067167,1749437445580,-856.57,0.00022465,4]
[365067168,1749437445590,-1028.87,0.00022465,4]
[365067169,1749437445600,-500.0,0.00022481,2]
[365067170,1749437445609,-1000.0,0.00022512,2]
[365067171,1749437445618,-473.99233255,0.00022555,7]
[365067172,1749437445628,-600.0,0.0002264,2]
[365067173,1749437445637,-364.9269501,0.00022658,2]
[365067174,1749437445647,-364.9269501,0.00022658,2]
[365067175,1749437445657,-364.9269501,0.00022658,2]
[365067176,1749437445666,-364.9269501,0.00022658,2]
[365067177,1749437445675,-729.8539002,0.00022658,2]
[365067178,1749437445685,-179.4069173,0.00022658,2]
[365067179,1749437445695,-364.9269501,0.00022658,2]
[365067181,1749437445704,-473.99233255,0.00022693,7]
[365067182,1749437445714,-1688.0,0.0002271,2]
[365067183,1749437445723,-151.34355789,0.0002271,2]
[365067184,1749437445738,-207.4,0.0002271,2]
[365067185,1749437445748,-151.31920398,0.0002271,2]
[365067186,1749437445758,-5000.0,0.0002271,2]
[365067187,1749437445768,-500.0,0.0002271,2]
[365067188,1749437445778,-500.0,0.0002271,2]
[365067189,1749437445788,-500.0,0.0002271,2]
[365067190,1749437445798,-500.0,0.0002271,2]
[365067191,1749437445808,-500.0,0.0002271,2]
[365067192,1749437445818,-500.0,0.0002271,2]
[365067193,1749437445828,-500.0,0.0002271,2]
[365067195,1749437445837,-500.0,0.0002271,2]
[365067197,1749437445846,-514.61626466,0.0002271,2]
[365067198,1749437445856,-500.0,0.0002271,2]
[365067199,1749437445865,-500.0,0.0002271,2]
[365067200,1749437445875,-500.0,0.0002271,2]
[365067201,1749437445884,-500.0,0.0002271,2]
[365067202,1749437445894,-500.0,0.0002271,2]
[365067203,1749437445903,-500.0,0.0002271,2]
[365067204,1749437445913,-500.0,0.0002271,2]
[365067205,1749437445923,-500.0,0.0002271,2]
[365067206,1749437445932,-500.0,0.0002271,2]
[365067208,1749437445942,-500.0,0.0002271,2]
[365067209,1749437445952,-497.45,0.00022739,4]
[365067210,1749437445961,-440.0,0.00022739,4]
[365067211,1749437445972,-440.0,0.00022739,4]
[365067212,1749437445982,-440.0,0.00022739,4]
[365067213,1749437445992,-440.0,0.00022739,4]
[365067214,1749437446002,-440.0,0.00022739,4]
[365067215,1749437446012,-1032.98,0.00022739,4]
[365067216,1749437446022,-440.0,0.00022739,4]
[365067217,1749437446032,-564.09,0.00022739,4]
[365067218,1749437446042,-631.6,0.00022739,4]
[365067219,1749437446052,-527.37,0.00022739,4]
[365067220,1749437446062,-873.94,0.00022739,4]
[365067221,1749437446071,-717.35,0.00022739,4]
[365067222,1749437446081,-856.57,0.00022739,4]
[365067223,1749437446091,-1028.87,0.00022739,4]
[365067224,1749437446101,-314.34854636,0.00022765,2]
[365067225,1749437446111,-587.0,0.00022775,2]
[365067226,1749437446121,-1000.0,0.000228,2]
[365067227,1749437446131,-473.99233255,0.00022831,8]
[365067228,1749437446141,-153.0,0.00022932,2]
[365067229,1749437446151,-158.7201836,0.00022932,2]
[365067230,1749437446161,-158.7201836,0.00022932,2]
[365067231,1749437446171,-176.7945791,0.00022932,2]
[365067232,1749437446180,-237.7810971,0.00022932,2]
[365067233,1749437446190,-153.0,0.00022932,2]
[365067234,1749437446200,-573.244939,0.00022932,2]
[365067235,1749437446210,-158.7201836,0.00022932,2]
[365067236,1749437446220,-153.0,0.00022932,2]
[365067237,1749437446229,-153.0,0.00022932,2]
[365067238,1749437446239,-176.7945793,0.00022932,2]
[365067239,1749437446249,-573.244939,0.00022932,2]
[365067240,1749437446259,-158.7201836,0.00022932,2]
[365067241,1749437446268,-573.244939,0.00022932,2]
[365067242,1749437446278,-176.7945791,0.00022932,2]
[365067243,1749437446288,-176.7945793,0.00022932,2]
[365067244,1749437446298,-158.7201836,0.00022932,2]
[365067245,1749437446309,-153.0,0.00022932,2]
[365067246,1749437446318,-573.244939,0.00022932,2]
[365067247,1749437446328,-153.0,0.00022932,2]
[365067248,1749437446337,-900.0,0.00022957,2]
[365067249,1749437446347,-473.99233255,0.00022969,8]
[365067250,1749437446358,-520.55502605,0.00022979,2]
[365067251,1749437446367,-1000.0,0.00022979,2]
[365067252,1749437446377,-939.0,0.00023,120]
[365067253,1749437446387,-497.45,0.00023013,4]
[365067254,1749437446396,-440.0,0.00023013,4]
[365067255,1749437446405,-440.0,0.00023013,4]
[365067256,1749437446415,-440.0,0.00023013,4]
[365067257,1749437446424,-440.0,0.00023013,4]
[365067258,1749437446434,-440.0,0.00023013,4]
[365067259,1749437446444,-1032.98,0.00023013,4]
[365067260,1749437446454,-440.0,0.00023013,4]
[365067261,1749437446464,-564.09,0.00023013,4]
[365067262,1749437446474,-631.6,0.00023013,4]
[365067264,1749437446483,-527.37,0.00023013,4]
[365067266,1749437446493,-873.94,0.00023013,4]
[365067268,1749437446502,-717.35,0.00023013,4]
[365067269,1749437446511,-856.57,0.00023013,4]
[365067270,1749437446521,-1028.87,0.00023013,4]
[365067271,1749437446530,-97605.06913718,0.00023045,2]
[365067272,1749437446540,-1500.0,0.0002306,2]
[365067273,1749437446549,-3654.42,0.00023081,3]
[365067274,1749437446559,-473.99233255,0.00023107,8]
[365067275,1749437446568,-1200.0,0.00023188,2]
[365067276,1749437446577,-473.99233255,0.00023245,8]
[365067277,1749437446587,-5000.0,0.00023258,2]
[365067278,1749437446597,-6000.0,0.00023264,3]
[365067279,1749437446608,-497.45,0.00023287,4]
[365067280,1749437446618,-440.0,0.00023287,4]
[365067281,1749437446627,-440.0,0.00023287,4]
[365067282,1749437446637,-440.0,0.00023287,4]
[365067283,1749437446647,-440.0,0.00023287,4]
[365067284,1749437446656,-440.0,0.00023287,4]
[365067285,1749437446667,-1032.98,0.00023287,4]
[365067286,1749437446676,-440.0,0.00023287,4]
[365067287,1749437446686,-564.09,0.00023287,4]
[365067288,1749437446698,-631.6,0.00023287,4]
[365067289,1749437446708,-527.37,0.00023287,4]
[365067290,1749437446718,-873.94,0.00023287,4]
[365067291,1749437446729,-717.35,0.00023287,4]
[365067292,1749437446741,-856.57,0.00023287,4]
[365067293,1749437446750,-1028.87,0.00023287,4]
[365067294,1749437446760,-1000.0,0.000233,2]
[365067295,1749437446770,-515.99395455,0.00023333,5]
[365067296,1749437446783,-473.99233255,0.00023383,9]
[365067297,1749437446793,-8000.0,0.00023386,3]
[365067298,1749437446802,-229.64266968,0.00023386,3]
[365067299,1749437446814,-834.7738823,0.00023386,3]
[365067300,1749437446824,-424.05420114,0.00023386,3]
[365067301,1749437446834,-160.0,0.00023386,3]
[365067302,1749437446843,-213.08899333,0.00023386,3]
[365067303,1749437446853,-162.57339305,0.00023397,2]
[365067304,1749437446862,-162.57339306,0.00023397,2]
[365067305,1749437446872,-3000.0,0.00023426,3]
[365067306,1749437446881,-153.0,0.00023479,2]
[365067307,1749437446890,-153.0,0.00023479,2]
[365067308,1749437446900,-153.0,0.00023479,2]
[365067309,1749437446909,-153.0,0.00023479,2]
[365067310,1749437446919,-153.0,0.00023479,2]
[365067311,1749437446928,-153.0,0.00023479,2]
[365067312,1749437446938,-709.13,0.000235,7]
[365067313,1749437446947,-473.99233255,0.00023521,9]
[365067314,1749437446957,-509.49702705,0.00023527,2]
[365067315,1749437446966,-500.0,0.0002356,2]
[365067316,1749437446976,-500.0,0.0002356,2]
[365067317,1749437446986,-500.0,0.0002356,2]
[365067318,1749437446995,-500.0,0.0002356,2]
[365067319,1749437447005,-500.0,0.0002356,2]
[365067320,1749437447015,-500.0,0.0002356,2]
[365067321,1749437447025,-500.0,0.0002356,2]
[365067322,1749437447035,-500.0,0.0002356,2]
[365067323,1749437447044,-500.0,0.0002356,2]
[365067324,1749437447054,-828.25453,0.0002356,2]
[365067325,1749437447063,-497.45,0.00023561,4]
[365067326,1749437447073,-440.0,0.00023561,4]
[365067327,1749437447083,-440.0,0.00023561,4]
[365067328,1749437447093,-261.23610311,0.00023561,4]
[365067329,1749437447103,-440.0,0.00023561,4]
[365067330,1749437447112,-440.0,0.00023561,4]
[365067331,1749437447122,-1032.98,0.00023561,4]
[365067332,1749437447132,-440.0,0.00023561,4]
[365067333,1749437447142,-564.09,0.00023561,4]
[365067334,1749437447151,-631.6,0.00023561,4]
[365067335,1749437447161,-527.37,0.00023561,4]
[365067336,1749437447171,-873.94,0.00023561,4]
[365067337,1749437447180,-717.35,0.00023561,4]
[365067338,1749437447190,-856.57,0.00023561,4]
[365067339,1749437447200,-1028.87,0.00023561,4]
[365067340,1749437447210,-4000.0,0.00023564,3]
[365067341,1749437447221,-600.0,0.00023585,2]
[365067342,1749437447231,-426.86,0.000236,7]
[365067343,1749437447241,-2000.0,0.00023607,2]
[365067344,1749437447251,-364.9269501,0.00023616,2]
[365067345,1749437447261,-473.99233255,0.00023659,9]
[365067346,1749437447271,-2000.0,0.00023698,7]
[365067347,1749437447281,-2000.0,0.00023698,7]
[365067348,1749437447291,-1014.58021333,0.00023698,7]
[365067349,1749437447405,-162.52231897,0.00023699,2]
[365067350,1749437447417,-162.57339305,0.00023699,2]
[365067351,1749437447427,-162.57339306,0.00023699,2]
[365067352,1749437447436,-162.52231896,0.00023699,2]
[365067353,1749437447447,-200.0,0.00023699,2]
[365067354,1749437447456,-745.23352601,0.00023736,2]
[365067355,1749437447467,-200.50968493,0.00023752,2]
[365067356,1749437447478,-153.0,0.00023753,2]
[365067357,1749437447488,-153.0,0.00023753,2]
[365067358,1749437447497,-153.0,0.00023753,2]
[365067359,1749437447507,-153.0,0.00023753,2]
[365067360,1749437447517,-153.0,0.00023753,2]
[365067361,1749437447527,-165.9511691,0.00023753,2]
[365067362,1749437447537,-153.0,0.00023753,2]
[365067363,1749437447547,-153.0,0.00023753,2]
[365067364,1749437447557,-153.0,0.00023753,2]
[365067365,1749437447567,-153.0,0.00023753,2]
[365067366,1749437447577,-153.0,0.00023753,2]
[365067367,1749437447586,-454.6417149,0.00023753,2]
[365067368,1749437447596,-153.0,0.00023753,2]
[365067369,1749437447607,-153.0,0.00023753,2]
[365067370,1749437447617,-153.0,0.00023753,2]
[365067371,1749437447626,-153.0,0.00023753,2]
[365067372,1749437447636,-153.0,0.00023753,2]
[365067373,1749437447645,-153.0,0.00023753,2]
[365067374,1749437447655,-153.0,0.00023753,2]
[365067375,1749437447665,-153.0,0.00023753,2]
[365067376,1749437447674,-153.0,0.00023753,2]
[365067377,1749437447684,-153.0,0.00023753,2]
[365067378,1749437447693,-153.0,0.00023753,2]
[365067379,1749437447703,-259.8782008,0.00023753,2]
[365067380,1749437447712,-473.99233255,0.00023797,9]
[365067381,1749437447722,-1000.0,0.000238,2]
[365067382,1749437447734,-5000.0,0.00023806,2]
[365067383,1749437447744,-600.0,0.00023831,2]
[365067384,1749437447754,-497.45,0.00023835,4]
[365067385,1749437447765,-440.0,0.00023835,4]
[365067386,1749437447775,-440.0,0.00023835,4]
[365067387,1749437447785,-440.0,0.00023835,4]
[365067388,1749437447794,-440.0,0.00023835,4]
[365067389,1749437447804,-1032.98,0.00023835,4]
[365067390,1749437447815,-440.0,0.00023835,4]
[365067391,1749437447826,-564.09,0.00023835,4]
[365067392,1749437447835,-631.6,0.00023835,4]
[365067393,1749437447845,-527.37,0.00023835,4]
[365067394,1749437447855,-873.94,0.00023835,4]
[365067395,1749437447865,-717.35,0.00023835,4]
[365067396,1749437447874,-856.57,0.00023835,4]
[365067397,1749437447884,-1028.87,0.00023835,4]
[365067398,1749437447893,-150.0,0.000239,2]
[365067399,1749437447904,-5850.0,0.00023912,7]
[365067400,1749437447914,-213.08899333,0.0002392,7]
[365067401,1749437447924,-473.99233255,0.00023934,10]
[365067402,1749437447933,-5850.0,0.00023941,7]
[365067403,1749437447943,-5850.0,0.0002397,7]
[365067404,1749437447953,-167128.82954468,0.00023988,2]
[365067405,1749437447963,-5850.0,0.00023999,7]
[365067406,1749437447972,-1000.0,0.00024,120]
[365067407,1749437447982,-162.57339305,0.00024,2]
[365067408,1749437447992,-229.64266968,0.00024,7]
[365067409,1749437448001,-162.57339306,0.00024,2]
[365067410,1749437448011,-530.58,0.00024,10]
[365067411,1749437448020,-3916.02,0.00024,10]
[365067412,1749437448031,-50161.59,0.00024,2]
[365067413,1749437448041,-153.0,0.00024027,2]
[365067414,1749437448050,-277.4745419,0.00024027,2]
[365067415,1749437448060,-5858.68256307,0.00024028,7]
[365067416,1749437448070,-900.0,0.00024053,2]